[Event "GrandPrix_30.05"]
[Site "Chess.com"]
[Date "2020.05.30"]
[Round "6"]
[White "Karateloru"]
[Black "ly4o"]
[Result "1-0"]
[WhiteElo "2184"]
[BlackElo "2019"]
[TimeControl "600+2"]
[EndTime "10:37:44 PDT"]
[Termination "Karateloru won by resignation"]

1. e4 {[%clk 0:10:01.9]} 1... c5 {[%clk 0:10:00.8]} 2. Nf3 {[%clk 0:10:00.3]}
2... Nc6 {[%clk 0:10:00.9]} 3. d4 {[%clk 0:09:59.4]} 3... cxd4 {[%clk
0:10:02.8]} 4. Nxd4 {[%clk 0:09:59.9]} 4... Qb6 {[%clk 0:10:04.4]} 5. Nb3 {[%clk
0:10:00.6]} 5... Nf6 {[%clk 0:10:05.4]} 6. Nc3 {[%clk 0:10:01.5]} 6... e6 {[%clk
0:10:06.1]} 7. Be3 {[%clk 0:10:02]} 7... Qc7 {[%clk 0:10:07]} 8. a3 {[%clk
0:09:58.1]} 8... a6 {[%clk 0:10:06.5]} 9. Bd3 {[%clk 0:09:56.7]} 9... b5 {[%clk
0:10:07.5]} 10. f4 {[%clk 0:09:57.2]} 10... d6 {[%clk 0:10:08.6]} 11. O-O {[%clk
0:09:54]} 11... Bb7 {[%clk 0:10:09.6]} 12. Qe2 {[%clk 0:09:53.7]} 12... Be7
{[%clk 0:10:10]} 13. Rae1 {[%clk 0:09:53.3]} 13... O-O {[%clk 0:10:10.9]} 14.
Nd4 {[%clk 0:09:52.9]} 14... Nxd4 {[%clk 0:10:01]} 15. Bxd4 {[%clk 0:09:54.8]}
15... Rac8 {[%clk 0:09:56]} 16. e5 {[%clk 0:09:53]} 16... dxe5 {[%clk
0:09:56.9]} 17. fxe5 {[%clk 0:09:53.9]} 17... Bc5 {[%clk 0:09:56.4]} 18. exf6
{[%clk 0:09:25.1]} 18... Bxd4+ {[%clk 0:09:56.4]} 19. Kh1 {[%clk 0:09:26.2]}
19... Bxf6 {[%clk 0:09:49.4]} 20. Bxh7+ {[%clk 0:09:10]} 20... Kxh7 {[%clk
0:09:45]} 21. Rxf6 {[%clk 0:09:10.1]} 21... gxf6 {[%clk 0:09:45.9]} 22. Qh5+
{[%clk 0:09:10.1]} 22... Kg7 {[%clk 0:09:46.4]} 23. Qg4+ {[%clk 0:09:11]} 23...
Kh6 {[%clk 0:09:38.8]} 24. Re3 {[%clk 0:09:10.9]} 1-0

[Event "GrandPrix_30.05"]
[Site "Chess.com"]
[Date "2020.05.30"]
[Round "6"]
[White "rasmussvane"]
[Black "DrVelja"]
[Result "1-0"]
[WhiteElo "2465"]
[BlackElo "2255"]
[TimeControl "600+2"]
[EndTime "10:37:56 PDT"]
[Termination "rasmussvane won by resignation"]

1. Nf3 {[%clk 0:10:01.9]} 1... Nf6 {[%clk 0:09:48.7]} 2. g3 {[%clk 0:10:02.8]}
2... g6 {[%clk 0:09:46.8]} 3. Bg2 {[%clk 0:10:03.3]} 3... Bg7 {[%clk 0:09:44.8]}
4. O-O {[%clk 0:10:04.7]} 4... O-O {[%clk 0:09:42.6]} 5. d4 {[%clk 0:10:06]}
5... d6 {[%clk 0:09:43.7]} 6. Re1 {[%clk 0:10:05.9]} 6... c5 {[%clk 0:09:22]} 7.
dxc5 {[%clk 0:10:07.8]} 7... dxc5 {[%clk 0:09:21.6]} 8. c3 {[%clk 0:10:09.3]}
8... Nc6 {[%clk 0:09:18.2]} 9. Qxd8 {[%clk 0:10:08.3]} 9... Rxd8 {[%clk
0:09:18.7]} 10. Be3 {[%clk 0:10:10.2]} 10... b6 {[%clk 0:08:54.4]} 11. Ne5
{[%clk 0:09:52.6]} 11... Nxe5 {[%clk 0:08:55.9]} 12. Bxa8 {[%clk 0:09:53.4]}
12... Nc4 {[%clk 0:08:57.5]} 13. Bc1 {[%clk 0:09:42.8]} 13... Bf5 {[%clk
0:08:54.7]} 14. Bg2 {[%clk 0:09:28.4]} 14... Ne4 {[%clk 0:08:44.8]} 15. g4
{[%clk 0:09:20.3]} 1-0

[Event "GrandPrix_30.05"]
[Site "Chess.com"]
[Date "2020.05.30"]
[Round "6"]
[White "nikosgal"]
[Black "PeshkaTheGreat"]
[Result "1-0"]
[WhiteElo "2284"]
[BlackElo "2137"]
[TimeControl "600+2"]
[EndTime "10:38:42 PDT"]
[Termination "nikosgal won by resignation"]

1. d4 {[%clk 0:10:01.9]} 1... d5 {[%clk 0:10:00.4]} 2. c4 {[%clk 0:10:02.4]}
2... c6 {[%clk 0:10:01]} 3. Nc3 {[%clk 0:10:02]} 3... Nf6 {[%clk 0:10:01.6]} 4.
cxd5 {[%clk 0:09:59.6]} 4... cxd5 {[%clk 0:10:02.1]} 5. Bf4 {[%clk 0:10:01.3]}
5... Nc6 {[%clk 0:10:01.9]} 6. e3 {[%clk 0:10:02.6]} 6... Ne4 {[%clk 0:10:01.1]}
7. Nxe4 {[%clk 0:09:37.9]} 7... dxe4 {[%clk 0:09:50.4]} 8. Ne2 {[%clk
0:09:34.7]} 8... e5 {[%clk 0:09:31]} 9. dxe5 {[%clk 0:09:34.8]} 9... Bb4+ {[%clk
0:09:15.4]} 10. Nc3 {[%clk 0:09:34]} 10... Qa5 {[%clk 0:09:13.1]} 11. Qc2 {[%clk
0:09:13.3]} 11... Nxe5 {[%clk 0:08:49.6]} 12. Rc1 {[%clk 0:09:12.8]} 12... Bf5
{[%clk 0:08:03.1]} 13. Bxe5 {[%clk 0:09:12.7]} 13... Qxe5 {[%clk 0:08:00.5]} 14.
Qa4+ {[%clk 0:09:13.6]} 1-0

[Event "GrandPrix_30.05"]
[Site "Chess.com"]
[Date "2020.05.30"]
[Round "6"]
[White "bsnsun"]
[Black "Saqo007"]
[Result "0-1"]
[WhiteElo "1914"]
[BlackElo "2138"]
[TimeControl "600+2"]
[EndTime "10:40:43 PDT"]
[Termination "Saqo007 won by resignation"]

1. Nf3 {[%clk 0:10:01.9]} 1... d5 {[%clk 0:09:58.1]} 2. g3 {[%clk 0:10:01.5]}
2... e6 {[%clk 0:09:54.9]} 3. c4 {[%clk 0:10:01.4]} 3... Nf6 {[%clk 0:09:56.8]}
4. Bg2 {[%clk 0:10:00.4]} 4... Be7 {[%clk 0:09:58.4]} 5. O-O {[%clk 0:09:59.9]}
5... O-O {[%clk 0:10:00]} 6. d4 {[%clk 0:10:01.2]} 6... dxc4 {[%clk 0:10:00.8]}
7. Ne5 {[%clk 0:10:01.7]} 7... Nc6 {[%clk 0:10:01.9]} 8. Bxc6 {[%clk 0:09:54.5]}
8... bxc6 {[%clk 0:10:03.8]} 9. Nxc6 {[%clk 0:09:55.8]} 9... Qe8 {[%clk
0:10:05]} 10. Nxe7+ {[%clk 0:09:57.6]} 10... Qxe7 {[%clk 0:10:06.9]} 11. Qc2
{[%clk 0:09:59.2]} 11... e5 {[%clk 0:10:08.5]} 12. dxe5 {[%clk 0:09:57.3]} 12...
Qxe5 {[%clk 0:10:10.4]} 13. Bf4 {[%clk 0:09:56.6]} 13... Qd5 {[%clk 0:09:57.4]}
14. Rd1 {[%clk 0:09:42]} 14... Qc6 {[%clk 0:09:56.5]} 15. Na3 {[%clk 0:09:33.9]}
15... Bh3 {[%clk 0:09:49.6]} 16. f3 {[%clk 0:09:30.5]} 16... Qc5+ {[%clk
0:09:49.3]} 17. Kh1 {[%clk 0:09:04]} 17... Qf2 {[%clk 0:09:47.1]} 18. Rg1 {[%clk
0:09:04.7]} 18... Rfe8 {[%clk 0:09:41.7]} 19. Rae1 {[%clk 0:08:43.2]} 19... Bg2+
{[%clk 0:09:02.7]} 20. Rxg2 {[%clk 0:08:42.1]} 20... Qxe1+ {[%clk 0:09:04.6]}
21. Rg1 {[%clk 0:08:43.4]} 21... Qxe2 {[%clk 0:09:06.2]} 22. Qc3 {[%clk
0:08:39.1]} 22... Nd5 {[%clk 0:09:03.7]} 23. Qd2 {[%clk 0:08:11.8]} 23... Qxf3+
{[%clk 0:09:00.8]} 24. Qg2 {[%clk 0:08:06.4]} 24... Qxg2+ {[%clk 0:08:58.1]} 25.
Kxg2 {[%clk 0:08:07.1]} 25... Nxf4+ {[%clk 0:08:54.2]} 26. gxf4 {[%clk 0:08:08]}
26... Re2+ {[%clk 0:08:55.9]} 27. Kf3 {[%clk 0:08:09.3]} 27... Rxb2 {[%clk
0:08:57.8]} 28. Nxc4 {[%clk 0:08:08.7]} 28... Rxa2 {[%clk 0:08:58.7]} 29. f5
{[%clk 0:08:10.2]} 29... Rxh2 {[%clk 0:08:57.7]} 30. f6 {[%clk 0:08:11.1]} 30...
g6 {[%clk 0:08:59]} 31. Ne5 {[%clk 0:08:12.5]} 31... Rh5 {[%clk 0:08:58.9]} 32.
Ng4 {[%clk 0:07:59.7]} 32... Kf8 {[%clk 0:08:55.7]} 33. Rc1 {[%clk 0:07:56.7]}
33... Rf5+ {[%clk 0:08:55.9]} 34. Kg3 {[%clk 0:07:54.8]} 34... h5 {[%clk
0:08:57.8]} 35. Ne3 {[%clk 0:07:51.8]} 35... Rxf6 {[%clk 0:08:58.2]} 36. Rxc7
{[%clk 0:07:52.6]} 36... a5 {[%clk 0:08:56.7]} 37. Nd5 {[%clk 0:07:52.8]} 37...
Re6 {[%clk 0:08:53.9]} 38. Nf4 {[%clk 0:07:48.8]} 38... Rd6 {[%clk 0:08:55]} 0-1

[Event "GrandPrix_30.05"]
[Site "Chess.com"]
[Date "2020.05.30"]
[Round "6"]
[White "Alex_Molchanov"]
[Black "AliKa2810"]
[Result "1-0"]
[WhiteElo "2041"]
[BlackElo "2064"]
[TimeControl "600+2"]
[EndTime "10:42:09 PDT"]
[Termination "Alex_Molchanov won by resignation"]

1. c4 {[%clk 0:10:01.9]} 1... Nf6 {[%clk 0:10:00.6]} 2. g3 {[%clk 0:10:01.2]}
2... e6 {[%clk 0:10:00.7]} 3. Bg2 {[%clk 0:10:02.1]} 3... d5 {[%clk 0:10:02.3]}
4. Nf3 {[%clk 0:10:03.6]} 4... dxc4 {[%clk 0:10:03.1]} 5. O-O {[%clk 0:10:04.4]}
5... a6 {[%clk 0:09:58.4]} 6. a4 {[%clk 0:09:55.3]} 6... Nc6 {[%clk 0:09:47.9]}
7. a5 {[%clk 0:09:08.3]} 7... Be7 {[%clk 0:09:28.6]} 8. Qa4 {[%clk 0:09:05.8]}
8... O-O {[%clk 0:09:28.1]} 9. Qxc4 {[%clk 0:09:05.4]} 9... e5 {[%clk
0:09:29.4]} 10. d3 {[%clk 0:08:53.3]} 10... Be6 {[%clk 0:09:29.3]} 11. Qa4
{[%clk 0:08:43.8]} 11... Qd7 {[%clk 0:09:28.3]} 12. Nc3 {[%clk 0:08:38.9]} 12...
Bh3 {[%clk 0:09:24]} 13. Bg5 {[%clk 0:08:23.3]} 13... Rad8 {[%clk 0:09:01.5]}
14. Rac1 {[%clk 0:08:06.2]} 14... Bxg2 {[%clk 0:08:50.1]} 15. Kxg2 {[%clk
0:08:08.1]} 15... Nd5 {[%clk 0:08:35.1]} 16. Bxe7 {[%clk 0:07:39.7]} 16... Qxe7
{[%clk 0:08:35.4]} 17. Ne4 {[%clk 0:07:17.5]} 17... Rde8 {[%clk 0:07:55.4]} 18.
Nc5 {[%clk 0:07:08.7]} 18... Nd8 {[%clk 0:07:55.3]} 19. Nd7 {[%clk 0:07:04.3]}
19... f5 {[%clk 0:07:54.5]} 20. Nxf8 {[%clk 0:07:03]} 20... Rxf8 {[%clk
0:07:55.8]} 21. Qc4 {[%clk 0:06:50.4]} 21... Qf7 {[%clk 0:07:53.5]} 22. Ng5
{[%clk 0:06:19.3]} 1-0

[Event "GrandPrix_30.05"]
[Site "Chess.com"]
[Date "2020.05.30"]
[Round "6"]
[White "Pash2015"]
[Black "Dolphin_2010"]
[Result "1-0"]
[WhiteElo "2220"]
[BlackElo "2077"]
[TimeControl "600+2"]
[EndTime "10:43:25 PDT"]
[Termination "Pash2015 won by resignation"]

1. e4 {[%clk 0:10:01.9]} 1... c6 {[%clk 0:10:00]} 2. d4 {[%clk 0:09:58.5]} 2...
d5 {[%clk 0:10:01.9]} 3. exd5 {[%clk 0:10:00.4]} 3... cxd5 {[%clk 0:10:03.8]} 4.
Nf3 {[%clk 0:09:59.6]} 4... Bg4 {[%clk 0:09:58.4]} 5. c4 {[%clk 0:09:59.6]} 5...
Bxf3 {[%clk 0:09:58.4]} 6. Qxf3 {[%clk 0:09:56]} 6... Nf6 {[%clk 0:09:58.5]} 7.
Nc3 {[%clk 0:09:50.1]} 7... e6 {[%clk 0:09:58.4]} 8. cxd5 {[%clk 0:09:46.4]}
8... Nxd5 {[%clk 0:09:56.9]} 9. Bc4 {[%clk 0:09:44.2]} 9... Bb4 {[%clk
0:09:38.7]} 10. O-O {[%clk 0:09:39.8]} 10... Bxc3 {[%clk 0:09:38.8]} 11. bxc3
{[%clk 0:09:39.6]} 11... O-O {[%clk 0:09:38.4]} 12. Rb1 {[%clk 0:09:39.4]} 12...
Qd7 {[%clk 0:09:09.8]} 13. Rd1 {[%clk 0:09:29.2]} 13... Rc8 {[%clk 0:09:05.1]}
14. Bb5 {[%clk 0:09:13.6]} 14... Qe7 {[%clk 0:08:28.7]} 15. c4 {[%clk
0:09:06.4]} 15... Nf6 {[%clk 0:08:26.5]} 16. Ba3 {[%clk 0:08:54.2]} 16... Qc7
{[%clk 0:08:05.7]} 17. d5 {[%clk 0:08:52.2]} 17... exd5 {[%clk 0:07:57.7]} 18.
cxd5 {[%clk 0:08:54.1]} 18... Nbd7 {[%clk 0:07:56.8]} 19. d6 {[%clk 0:08:46.9]}
19... Qa5 {[%clk 0:07:56.7]} 20. Bxd7 {[%clk 0:08:43]} 20... Nxd7 {[%clk
0:07:58.6]} 21. Rxb7 {[%clk 0:08:44]} 21... Ne5 {[%clk 0:07:58.4]} 22. Qb3
{[%clk 0:08:41.8]} 22... Re8 {[%clk 0:07:15]} 23. d7 {[%clk 0:08:25.2]} 23...
Nf3+ {[%clk 0:05:17.3]} 24. gxf3 {[%clk 0:08:15.9]} 24... Re1+ {[%clk
0:05:16.3]} 25. Rxe1 {[%clk 0:08:10]} 25... Qxe1+ {[%clk 0:05:18.2]} 26. Kg2
{[%clk 0:08:11.4]} 26... Rd8 {[%clk 0:05:18]} 27. Rb8 {[%clk 0:08:03.9]} 27...
Qa5 {[%clk 0:05:17.6]} 28. Rxd8+ {[%clk 0:08:03]} 28... Qxd8 {[%clk 0:05:19.5]}
29. Qd5 {[%clk 0:07:58.1]} 1-0

[Event "GrandPrix_30.05"]
[Site "Chess.com"]
[Date "2020.05.30"]
[Round "6"]
[White "anesar92"]
[Black "AvitalBor"]
[Result "0-1"]
[WhiteElo "2401"]
[BlackElo "2650"]
[TimeControl "600+2"]
[EndTime "10:45:33 PDT"]
[Termination "AvitalBor won by resignation"]

1. e4 {[%clk 0:10:01.9]} 1... e5 {[%clk 0:09:58.3]} 2. Nf3 {[%clk 0:10:02.5]}
2... Nc6 {[%clk 0:09:59]} 3. Bb5 {[%clk 0:10:02.8]} 3... a6 {[%clk 0:10:00.1]}
4. Ba4 {[%clk 0:10:03.4]} 4... Nf6 {[%clk 0:10:01.4]} 5. O-O {[%clk 0:10:03.2]}
5... b5 {[%clk 0:10:02.7]} 6. Bb3 {[%clk 0:10:03.4]} 6... Bb7 {[%clk 0:10:04.3]}
7. d3 {[%clk 0:09:58.6]} 7... Be7 {[%clk 0:10:05]} 8. Nc3 {[%clk 0:09:50.7]}
8... O-O {[%clk 0:10:06]} 9. Nd5 {[%clk 0:09:35.8]} 9... Na5 {[%clk 0:10:06.4]}
10. Nxe7+ {[%clk 0:09:20.2]} 10... Qxe7 {[%clk 0:10:08.3]} 11. Bg5 {[%clk
0:09:18.6]} 11... Nxb3 {[%clk 0:09:50.2]} 12. axb3 {[%clk 0:09:16.8]} 12... h6
{[%clk 0:09:51.2]} 13. Bh4 {[%clk 0:09:06.2]} 13... Qe6 {[%clk 0:09:52.2]} 14.
Re1 {[%clk 0:08:30.4]} 14... d6 {[%clk 0:09:47.3]} 15. b4 {[%clk 0:07:48.5]}
15... Nh7 {[%clk 0:09:32.7]} 16. d4 {[%clk 0:06:08.4]} 16... f5 {[%clk 0:09:25]}
17. dxe5 {[%clk 0:06:08.4]} 17... fxe4 {[%clk 0:09:10.8]} 18. exd6 {[%clk
0:06:08.4]} 18... Qg4 {[%clk 0:08:18.3]} 19. h3 {[%clk 0:06:08]} 19... Qh5
{[%clk 0:07:33.4]} 20. g4 {[%clk 0:06:05.5]} 20... Qg6 {[%clk 0:07:33.9]} 21.
Ne5 {[%clk 0:04:20.9]} 21... Qe6 {[%clk 0:07:30.8]} 22. Bg3 {[%clk 0:04:20.3]}
22... cxd6 {[%clk 0:07:24.5]} 23. Nf3 {[%clk 0:04:19.1]} 23... Qf6 {[%clk
0:06:58.5]} 24. Nd4 {[%clk 0:04:11.2]} 24... Ng5 {[%clk 0:06:56.9]} 25. Kh2
{[%clk 0:04:12]} 25... Qxd4 {[%clk 0:06:52.8]} 0-1

[Event "GrandPrix_30.05"]
[Site "Chess.com"]
[Date "2020.05.30"]
[Round "6"]
[White "BakaPG"]
[Black "VincentKeymer"]
[Result "0-1"]
[WhiteElo "2298"]
[BlackElo "2613"]
[TimeControl "600+2"]
[EndTime "10:45:45 PDT"]
[Termination "VincentKeymer won by resignation"]

1. e4 {[%clk 0:10:01.9]} 1... e6 {[%clk 0:09:34.9]} 2. d4 {[%clk 0:09:59.7]}
2... d5 {[%clk 0:09:35.5]} 3. e5 {[%clk 0:10:00.9]} 3... c5 {[%clk 0:09:35.9]}
4. c3 {[%clk 0:10:02]} 4... Nc6 {[%clk 0:09:37.5]} 5. Nf3 {[%clk 0:10:03]} 5...
Qc7 {[%clk 0:09:38.6]} 6. a3 {[%clk 0:09:49.1]} 6... c4 {[%clk 0:09:38.1]} 7.
Be2 {[%clk 0:09:45.9]} 7... Nge7 {[%clk 0:09:27.6]} 8. O-O {[%clk 0:09:45.8]}
8... f6 {[%clk 0:09:28.1]} 9. exf6 {[%clk 0:09:44.9]} 9... gxf6 {[%clk 0:09:30]}
10. Re1 {[%clk 0:09:43.2]} 10... Ng6 {[%clk 0:09:29.7]} 11. Bf1 {[%clk
0:09:40.3]} 11... Bg7 {[%clk 0:09:24]} 12. b3 {[%clk 0:09:28.6]} 12... cxb3
{[%clk 0:09:22.7]} 13. Qxb3 {[%clk 0:09:29.1]} 13... O-O {[%clk 0:09:22.1]} 14.
Nbd2 {[%clk 0:09:20.8]} 14... Na5 {[%clk 0:09:14.6]} 15. Qc2 {[%clk 0:09:11]}
15... e5 {[%clk 0:09:08.2]} 16. dxe5 {[%clk 0:08:48.8]} 16... fxe5 {[%clk
0:09:10.1]} 17. Nb3 {[%clk 0:08:37]} 17... Nc6 {[%clk 0:08:31.8]} 18. Qd1 {[%clk
0:08:28.3]} 18... Qf7 {[%clk 0:08:20.4]} 19. Be3 {[%clk 0:08:14]} 19... Bg4
{[%clk 0:08:12.8]} 20. Be2 {[%clk 0:08:13.7]} 20... Bxf3 {[%clk 0:08:13]} 21.
Bxf3 {[%clk 0:08:13.8]} 21... e4 {[%clk 0:08:14.4]} 22. Be2 {[%clk 0:08:00.3]}
22... Bxc3 {[%clk 0:08:13.1]} 23. Rf1 {[%clk 0:07:49.1]} 23... Bxa1 {[%clk
0:07:57]} 24. Qxa1 {[%clk 0:07:47.4]} 24... Nf4 {[%clk 0:07:49.5]} 25. Bg4
{[%clk 0:07:33.2]} 25... Qg6 {[%clk 0:07:27.5]} 26. Bxf4 {[%clk 0:07:07]} 26...
Rxf4 {[%clk 0:07:26.3]} 27. Bh3 {[%clk 0:07:02.8]} 27... Raf8 {[%clk 0:05:49.1]}
28. Nc5 {[%clk 0:06:56.6]} 28... R8f6 {[%clk 0:05:36.1]} 29. g3 {[%clk
0:06:41.5]} 29... e3 {[%clk 0:05:20]} 30. Be6+ {[%clk 0:06:14.2]} 30... Rxe6
{[%clk 0:05:17.5]} 31. Nxe6 {[%clk 0:06:14.3]} 31... exf2+ {[%clk 0:05:17.5]}
0-1

[Event "GrandPrix_30.05"]
[Site "Chess.com"]
[Date "2020.05.30"]
[Round "6"]
[White "Micki-taryan"]
[Black "v-kazakouski"]
[Result "1-0"]
[WhiteElo "2518"]
[BlackElo "2374"]
[TimeControl "600+2"]
[EndTime "10:46:14 PDT"]
[Termination "Micki-taryan won by resignation"]

1. d4 {[%clk 0:10:01.9]} 1... Nf6 {[%clk 0:09:58.7]} 2. Nf3 {[%clk 0:10:03]}
2... e6 {[%clk 0:09:58.5]} 3. c4 {[%clk 0:10:03.9]} 3... d5 {[%clk 0:09:58.1]}
4. Nc3 {[%clk 0:10:04.1]} 4... Bb4 {[%clk 0:09:58]} 5. Bg5 {[%clk 0:09:56.5]}
5... h6 {[%clk 0:09:57.8]} 6. Bxf6 {[%clk 0:09:57.1]} 6... Qxf6 {[%clk
0:09:57.9]} 7. Qa4+ {[%clk 0:09:59]} 7... Nc6 {[%clk 0:09:58.1]} 8. e3 {[%clk
0:09:59.4]} 8... O-O {[%clk 0:09:54.9]} 9. Be2 {[%clk 0:10:00.3]} 9... Rd8
{[%clk 0:09:53.4]} 10. O-O {[%clk 0:09:55.9]} 10... a6 {[%clk 0:09:39.4]} 11.
Qb3 {[%clk 0:09:51.5]} 11... dxc4 {[%clk 0:09:32.9]} 12. Qxc4 {[%clk 0:09:53.4]}
12... Bf8 {[%clk 0:09:19.4]} 13. Rac1 {[%clk 0:09:49]} 13... Rb8 {[%clk
0:09:02.1]} 14. a3 {[%clk 0:09:45.9]} 14... Bd7 {[%clk 0:08:51.6]} 15. Ne4
{[%clk 0:09:46]} 15... Qf5 {[%clk 0:08:50.5]} 16. Nc5 {[%clk 0:09:43.1]} 16...
Be8 {[%clk 0:08:36.4]} 17. Bd3 {[%clk 0:09:34.6]} 17... Qh5 {[%clk 0:08:00.5]}
18. Be4 {[%clk 0:09:26.5]} 18... Rd6 {[%clk 0:07:21.3]} 19. b4 {[%clk
0:09:09.7]} 19... Kh8 {[%clk 0:06:29.5]} 20. Bb1 {[%clk 0:09:00.7]} 20... Rdd8
{[%clk 0:05:31]} 21. Qc2 {[%clk 0:08:59.2]} 21... g6 {[%clk 0:05:31.2]} 22. Rfd1
{[%clk 0:08:35.5]} 22... Bg7 {[%clk 0:05:14.1]} 23. Qe2 {[%clk 0:08:33.1]} 23...
Na7 {[%clk 0:05:05.8]} 24. Be4 {[%clk 0:08:29.7]} 24... c6 {[%clk 0:04:56.7]}
25. a4 {[%clk 0:08:16.7]} 25... Nc8 {[%clk 0:04:45.1]} 26. Bd3 {[%clk
0:08:11.1]} 26... Nd6 {[%clk 0:04:41.6]} 27. h3 {[%clk 0:08:04]} 27... Ra8
{[%clk 0:04:12]} 28. Qf1 {[%clk 0:07:46.8]} 28... a5 {[%clk 0:03:14.9]} 29. e4
{[%clk 0:07:46.7]} 29... f5 {[%clk 0:02:53.8]} 30. e5 {[%clk 0:07:47.7]} 1-0

[Event "GrandPrix_30.05"]
[Site "Chess.com"]
[Date "2020.05.30"]
[Round "6"]
[White "ArnaudovP"]
[Black "WoodlandMagic"]
[Result "1-0"]
[WhiteElo "2270"]
[BlackElo "2108"]
[TimeControl "600+2"]
[EndTime "10:46:20 PDT"]
[Termination "ArnaudovP won by checkmate"]

1. Nf3 {[%clk 0:10:01.9]} 1... Nf6 {[%clk 0:09:59.1]} 2. c4 {[%clk 0:10:02.4]}
2... c6 {[%clk 0:09:59.9]} 3. d4 {[%clk 0:10:02.3]} 3... d5 {[%clk 0:10:01.1]}
4. Nc3 {[%clk 0:10:01.6]} 4... dxc4 {[%clk 0:10:00.5]} 5. e4 {[%clk 0:10:01.6]}
5... b5 {[%clk 0:10:00.3]} 6. e5 {[%clk 0:10:01.6]} 6... Nd5 {[%clk 0:10:00.3]}
7. a4 {[%clk 0:10:03.5]} 7... e6 {[%clk 0:09:25.8]} 8. Be2 {[%clk 0:09:55.1]}
8... Bb7 {[%clk 0:09:21]} 9. O-O {[%clk 0:09:54.6]} 9... a6 {[%clk 0:09:12.5]}
10. Ne4 {[%clk 0:09:54.3]} 10... h6 {[%clk 0:09:12.6]} 11. Bd2 {[%clk
0:09:53.2]} 11... Nd7 {[%clk 0:09:10]} 12. b3 {[%clk 0:09:54.3]} 12... cxb3
{[%clk 0:09:06.4]} 13. Qxb3 {[%clk 0:09:54.4]} 13... Be7 {[%clk 0:09:06.5]} 14.
Rfc1 {[%clk 0:09:53.9]} 14... O-O {[%clk 0:09:01.2]} 15. Ne1 {[%clk 0:09:53.8]}
15... f5 {[%clk 0:08:33.4]} 16. exf6 {[%clk 0:09:51.2]} 16... N7xf6 {[%clk
0:08:34.4]} 17. Qh3 {[%clk 0:09:35.2]} 17... Nxe4 {[%clk 0:07:34.9]} 18. Qxe6+
{[%clk 0:09:34.7]} 18... Kh8 {[%clk 0:07:35.9]} 19. Qxe4 {[%clk 0:09:35.9]}
19... Nf6 {[%clk 0:07:36.6]} 20. Qg6 {[%clk 0:09:22.6]} 20... Qxd4 {[%clk
0:07:05.3]} 21. Nf3 {[%clk 0:09:16.3]} 21... Qe4 {[%clk 0:06:59.4]} 22. Bd3
{[%clk 0:09:14]} 22... Qxg6 {[%clk 0:06:53.8]} 23. Bxg6 {[%clk 0:09:15.2]} 23...
c5 {[%clk 0:06:21.6]} 24. Ne5 {[%clk 0:09:14.3]} 24... Kg8 {[%clk 0:06:08.2]}
25. Bf5 {[%clk 0:09:09.2]} 25... Ne4 {[%clk 0:05:36.7]} 26. Ng6 {[%clk
0:08:56.2]} 26... Nxd2 {[%clk 0:04:40.3]} 27. Nxe7+ {[%clk 0:08:55.1]} 27... Kf7
{[%clk 0:04:39.8]} 28. Re1 {[%clk 0:08:46.3]} 28... Kf6 {[%clk 0:04:16.2]} 29.
Re6+ {[%clk 0:08:42.7]} 29... Kg5 {[%clk 0:04:13.9]} 30. Rg6+ {[%clk 0:08:10.7]}
30... Kf4 {[%clk 0:02:56.8]} 31. Re1 {[%clk 0:08:04.8]} 31... Rxf5 {[%clk
0:02:33.4]} 32. g3+ {[%clk 0:08:01.9]} 32... Kf3 {[%clk 0:02:34.3]} 33. Re3#
{[%clk 0:08:02.3]} 1-0

[Event "GrandPrix_30.05"]
[Site "Chess.com"]
[Date "2020.05.30"]
[Round "6"]
[White "DariaVoit"]
[Black "aleksandrovaleksei"]
[Result "0-1"]
[WhiteElo "2379"]
[BlackElo "2589"]
[TimeControl "600+2"]
[EndTime "10:46:50 PDT"]
[Termination "aleksandrovaleksei won by resignation"]

1. d4 {[%clk 0:09:57.6]} 1... Nf6 {[%clk 0:09:59.5]} 2. Nf3 {[%clk 0:09:57.5]}
2... d5 {[%clk 0:09:57.1]} 3. c4 {[%clk 0:09:57.8]} 3... e6 {[%clk 0:09:57.8]}
4. g3 {[%clk 0:09:58.6]} 4... dxc4 {[%clk 0:09:57.3]} 5. Bg2 {[%clk 0:09:58.6]}
5... Nc6 {[%clk 0:09:58.4]} 6. Qa4 {[%clk 0:09:58.3]} 6... Bb4+ {[%clk
0:09:56.7]} 7. Bd2 {[%clk 0:09:58.7]} 7... Bd6 {[%clk 0:09:55.6]} 8. Qxc4 {[%clk
0:09:36.5]} 8... O-O {[%clk 0:09:55.7]} 9. O-O {[%clk 0:09:31]} 9... e5 {[%clk
0:09:56.1]} 10. d5 {[%clk 0:09:23.3]} 10... Ne7 {[%clk 0:09:56.4]} 11. e4 {[%clk
0:09:23.5]} 11... h6 {[%clk 0:09:50.4]} 12. Nc3 {[%clk 0:07:53]} 12... a6 {[%clk
0:09:49.1]} 13. a4 {[%clk 0:07:54]} 13... c6 {[%clk 0:09:43.8]} 14. Be3 {[%clk
0:07:36.2]} 14... cxd5 {[%clk 0:08:51.8]} 15. exd5 {[%clk 0:07:38.1]} 15... Nf5
{[%clk 0:07:28.1]} 16. Bc5 {[%clk 0:07:06.8]} 16... Qc7 {[%clk 0:07:21.1]} 17.
b4 {[%clk 0:04:52.6]} 17... b6 {[%clk 0:07:19.8]} 18. Nxe5 {[%clk 0:03:46.8]}
18... bxc5 {[%clk 0:07:10.6]} 19. bxc5 {[%clk 0:03:30.3]} 19... Bxe5 {[%clk
0:06:45.8]} 20. d6 {[%clk 0:03:30.4]} 20... Nxd6 {[%clk 0:06:43.5]} 21. Qd3
{[%clk 0:02:52.4]} 21... Nb7 {[%clk 0:06:41.5]} 0-1

[Event "GrandPrix_30.05"]
[Site "Chess.com"]
[Date "2020.05.30"]
[Round "6"]
[White "PresidenteMNE"]
[Black "dosto07"]
[Result "1-0"]
[WhiteElo "2104"]
[BlackElo "1795"]
[TimeControl "600+2"]
[EndTime "10:46:50 PDT"]
[Termination "PresidenteMNE won by resignation"]

1. d4 {[%clk 0:10:01.9]} 1... d5 {[%clk 0:09:52]} 2. Nc3 {[%clk 0:10:01.5]} 2...
Nf6 {[%clk 0:09:50.3]} 3. Bg5 {[%clk 0:10:01.7]} 3... Bf5 {[%clk 0:09:44.7]} 4.
f3 {[%clk 0:10:02.5]} 4... c6 {[%clk 0:08:51.4]} 5. e3 {[%clk 0:09:58.3]} 5...
Nbd7 {[%clk 0:08:31.7]} 6. g4 {[%clk 0:09:57.8]} 6... Bg6 {[%clk 0:08:30.9]} 7.
h4 {[%clk 0:09:59.7]} 7... h6 {[%clk 0:08:10.7]} 8. Bf4 {[%clk 0:09:59.7]} 8...
e6 {[%clk 0:08:08.9]} 9. Qd2 {[%clk 0:09:59.3]} 9... Qa5 {[%clk 0:08:03.9]} 10.
Nge2 {[%clk 0:09:57.5]} 10... O-O-O {[%clk 0:07:15.5]} 11. a3 {[%clk 0:09:53.6]}
11... c5 {[%clk 0:06:41.6]} 12. Nc1 {[%clk 0:09:54.4]} 12... cxd4 {[%clk
0:06:34.6]} 13. exd4 {[%clk 0:09:56.3]} 13... Bb4 {[%clk 0:05:48.5]} 14. axb4
{[%clk 0:09:53]} 14... Qxa1 {[%clk 0:05:47.7]} 15. Nb5 {[%clk 0:09:48.4]} 15...
Nb6 {[%clk 0:05:14.6]} 16. Qc3+ {[%clk 0:09:11.2]} 16... Kd7 {[%clk 0:04:47.8]}
17. Qc7+ {[%clk 0:09:11.1]} 17... Ke8 {[%clk 0:04:48.6]} 18. Nd6+ {[%clk
0:08:51.4]} 18... Rxd6 {[%clk 0:04:44.1]} 19. Qxd6 {[%clk 0:08:44.6]} 19... Nfd7
{[%clk 0:03:36.5]} 20. Bb5 {[%clk 0:08:10]} 20... a6 {[%clk 0:03:09.5]} 21. Qb8+
{[%clk 0:08:07.2]} 21... Ke7 {[%clk 0:03:08.3]} 22. Bd6+ {[%clk 0:08:08.1]}
22... Kf6 {[%clk 0:03:08.4]} 23. g5+ {[%clk 0:08:02.7]} 23... hxg5 {[%clk
0:02:39.6]} 24. hxg5+ {[%clk 0:08:03.5]} 24... Kxg5 {[%clk 0:02:28.7]} 25. Be7+
{[%clk 0:08:04.3]} 25... Nf6 {[%clk 0:01:42.2]} 26. Qg3+ {[%clk 0:08:02.8]} 1-0